bitfinex-derivatives/quotes_BNBF0:USTF0_20241231
["timestamp","ask_amount","ask_price","bid_price","bid_amount"]
[1735618337181,0.25948002,709.75,708.2,0.28240609]
[1735618337782,1.05361886,709.74,708.22,1.04199174]
[1735618337987,0.25948002,709.73,708.24,0.28239015]
[1735618338890,1.05361886,709.69,708.27,1.04199174]
[1735618339088,1.05361886,709.69,708.28,0.2823742]
[1735618339490,1.47249128,709.68,708.28,0.2823742]
[1735618340785,1.05361886,709.64,708.28,0.2823742]
[1735618342093,1.05361886,709.57,708.28,0.2823742]
[1735618342698,1.05361886,709.61,708.28,0.2823742]
[1735618344000,1.47249128,709.68,708.28,0.2823742]
[1735618344001,1.05361886,709.57,708.28,0.2823742]
[1735618344994,1.05361886,709.58,708.28,0.2823742]
[1735618345997,1.4724186,709.77,708.28,0.2823742]
[1735618347304,1.4724186,709.77,708.3,1.04199174]
[1735618347505,1.4724186,709.77,708.32,0.28235825]
[1735618351605,1.05361886,710.01,708.32,0.28235825]
[1735618351905,1.4721383,709.89,708.32,0.28235825]
[1735618352106,1.05361886,710.01,708.32,0.28235825]
[1735618352400,1.47201376,710.0,708.32,0.28235825]
[1735618352806,1.47201376,710.0,708.45,1.04199174]
[1735618354100,1.47201376,710.0,708.66,1.04199174]
[1735618354704,1.47201376,710.0,708.68,0.28221482]
[1735618357208,0.25935117,709.99,708.68,0.28221482]
[1735618360212,1.47201376,710.0,708.68,0.28221482]
[1735618360213,0.25938333,709.98,708.68,0.28221482]
[1735618360406,0.25938333,709.97,708.68,0.28221482]
[1735618360607,0.25938333,709.96,708.68,0.28221482]
[1735618360814,0.25938333,709.99,708.68,0.28221482]
[1735618361113,0.25938333,709.98,708.68,0.28221482]
[1735618361307,0.25938333,709.99,708.68,0.28221482]
[1735618361508,0.25938333,709.98,708.68,0.28221482]
[1735618361712,0.25938333,709.97,708.68,0.28221482]
[1735618361911,0.25938333,709.96,708.68,0.28221482]
[1735618362111,0.25938333,709.95,708.68,0.28221482]
[1735618362312,0.25938333,709.94,708.68,0.28221482]
[1735618362515,0.25938333,709.93,708.68,0.28221482]
[1735618362709,0.25938333,709.99,708.68,0.28221482]
[1735618362914,0.25941742,709.98,708.68,0.28221482]
[1735618363115,0.25941742,709.97,708.68,0.28221482]
[1735618365513,0.25942382,709.96,708.68,0.28221482]
[1735618365717,0.25942382,709.95,708.68,0.28221482]
[1735618366014,0.25942382,709.94,708.68,0.28221482]
[1735618366219,0.25942382,709.93,708.68,0.28221482]
[1735618366417,0.25942382,709.92,708.68,0.28221482]
[1735618366719,0.28172585,709.91,708.68,0.28221482]
[1735618367916,0.25946825,709.9,708.68,0.28221482]
[1735618368623,0.28172585,709.91,708.68,0.28221482]
[1735618368824,0.2594709,709.9,708.68,0.28221482]
[1735618373419,1.47264706,709.89,708.68,0.28221482]
[1735618373621,0.54120865,709.88,708.68,0.28221482]
[1735618373821,0.54121262,709.87,708.68,0.28221482]
[1735618374024,0.2594709,709.86,708.68,0.28221482]
[1735618374225,0.54121659,709.86,708.68,0.28221482]
[1735618374425,0.2594709,709.85,708.68,0.28221482]
[1735618374627,0.28175363,709.84,708.68,0.28221482]
[1735618374827,0.2594709,709.83,708.68,0.28221482]
[1735618375028,0.28176157,709.82,708.68,0.28221482]
[1735618375227,0.2594709,709.81,708.68,0.28221482]
[1735618375526,0.28176951,709.8,708.68,0.28221482]
[1735618375724,0.2594709,709.79,708.68,0.28221482]
[1735618376723,0.25949861,709.78,708.68,0.28221482]
[1735618376926,0.25949861,709.77,708.68,0.28221482]
[1735618377126,0.2594996,709.76,708.68,0.28221482]
[1735618377327,0.2594996,709.75,708.68,0.28221482]
[1735618377523,0.2594996,709.74,708.68,0.28221482]
[1735618377726,0.2594996,709.73,708.68,0.28221482]
[1735618377925,0.2594996,709.72,708.68,0.28221482]
[1735618378227,0.2594996,709.71,708.68,0.28221482]
[1735618378430,0.2594996,709.7,708.68,0.28221482]
[1735618378626,0.25950777,709.69,708.68,0.28221482]
[1735618378827,0.25950777,709.68,708.68,0.28221482]
[1735618379026,0.25950777,709.67,708.68,0.28221482]
[1735618379227,0.25950777,709.66,708.68,0.28221482]
[1735618379424,0.28176951,709.8,708.68,0.28221482]
[1735618379625,0.25950331,709.79,708.68,0.28221482]
[1735618380826,0.28176951,709.8,708.68,0.28221482]
[1735618381024,0.25949104,709.79,708.68,0.28221482]
[1735618381529,0.28176951,709.8,708.68,0.28221482]
[1735618381729,0.25948778,709.79,708.68,0.28221482]
[1735618383030,0.25946177,709.78,708.68,0.28221482]
[1735618383229,0.25946177,709.77,708.68,0.28221482]
[1735618383532,0.25946177,709.76,708.68,0.28221482]
[1735618383829,1.47257436,709.76,708.68,0.28221482]
[1735618385733,0.25945009,709.75,708.68,0.28221482]
[1735618386530,1.47257436,709.76,708.68,0.28221482]
[1735618390731,0.25949841,709.75,708.68,0.28221482]
[1735618390936,1.47257436,709.76,708.68,0.28221482]
[1735618396733,0.25950555,709.75,708.68,0.28221482]
[1735618397137,1.47257436,709.76,708.68,0.28221482]
[1735618398939,1.05361886,709.75,708.68,0.28221482]
[1735618399937,1.05361886,709.72,708.68,0.28221482]
[1735618400943,1.05361886,709.69,708.68,0.28221482]
[1735618401542,1.47267303,709.68,708.68,0.28221482]
[1735618401939,1.05361886,709.64,708.68,0.28221482]
[1735618403747,1.47267303,709.68,708.68,0.28221482]
[1735618407947,1.47267303,709.68,707.97,1.04199174]
[1735618408148,1.47267303,709.68,707.99,0.28248986]
[1735618410053,0.28182112,709.67,707.99,0.28248986]
[1735618410546,0.25958017,709.66,707.99,0.28248986]
[1735618410752,0.28182907,709.65,707.99,0.28248986]
[1735618410951,0.25958192,709.64,707.99,0.28248986]
[1735618411151,1.05361886,709.6,707.99,0.28248986]
[1735618411353,0.2818529,709.59,707.99,0.28248986]
[1735618411755,1.47317176,709.58,707.99,0.28248986]
[1735618411957,0.28186084,709.57,707.99,0.28248986]
[1735618413751,0.25960813,709.56,707.99,0.28248986]
[1735618413954,0.28186879,709.55,707.99,0.28248986]
[1735618414152,0.25960813,709.54,707.99,0.28248986]
[1735618414457,0.28187673,709.53,707.99,0.28248986]
[1735618414856,0.25962084,709.52,707.99,0.28248986]
[1735618415155,0.28188468,709.51,707.99,0.28248986]
[1735618418359,0.25964446,709.5,707.99,0.28248986]
[1735618418556,0.28189262,709.49,707.99,0.28248986]
[1735618418759,0.25964446,709.48,707.99,0.28248986]
[1735618418955,0.28190057,709.47,707.99,0.28248986]
[1735618419253,0.25964446,709.46,707.99,0.28248986]
[1735618419462,0.28190852,709.45,707.99,0.28248986]
[1735618419856,0.25964953,709.44,707.99,0.28248986]
[1735618420051,0.28191646,709.43,707.99,0.28248986]
[1735618421253,0.2596439,709.42,707.99,0.28248986]
[1735618421452,0.28192441,709.41,707.99,0.28248986]
[1735618421658,0.2596439,709.4,707.99,0.28248986]
[1735618422160,1.47368124,709.39,707.99,0.28248986]
[1735618422356,0.2596439,709.38,707.99,0.28248986]
[1735618423756,0.28194031,709.37,707.99,0.28248986]
[1735618423960,0.2596439,709.36,707.99,0.28248986]
[1735618424157,0.28194826,709.35,707.99,0.28248986]
[1735618426461,0.2596649,709.34,707.99,0.28248986]
[1735618429464,0.28195621,709.33,707.99,0.28248986]
[1735618429659,0.2596649,709.32,707.99,0.28248986]
[1735618429858,0.28196416,709.31,707.99,0.28248986]
[1735618430063,0.2596649,709.3,707.99,0.28248986]
[1735618430363,0.28197211,709.29,707.99,0.28248986]
[1735618430763,0.25971776,709.28,707.99,0.28248986]
[1735618431359,0.25971524,709.27,707.99,0.28248986]
[1735618431665,0.25971524,709.26,707.99,0.28248986]
[1735618431965,0.54170325,709.25,707.99,0.28248986]
[1735618432165,0.54170723,709.24,707.99,0.28248986]
[1735618432464,0.6476549,709.73,707.99,0.28248986]
[1735618432465,0.5417112,709.23,707.99,0.28248986]
[1735618432664,0.25971524,709.22,707.99,0.28248986]
[1735618433259,0.28199596,709.23,707.99,0.28248986]
[1735618433465,0.25970686,709.22,707.99,0.28248986]
[1735618435064,0.28199596,709.23,707.99,0.28248986]
[1735618435661,0.25965775,709.22,707.99,0.28248986]
[1735618435967,0.25966642,709.21,707.99,0.28248986]
[1735618436161,0.25966642,709.2,707.99,0.28248986]
[1735618436365,0.28199596,709.23,707.99,0.28248986]
[1735618436666,0.25966253,709.22,707.99,0.28248986]
[1735618436966,0.28199596,709.23,707.99,0.28248986]
[1735618437167,0.25965687,709.22,707.99,0.28248986]
[1735618437368,0.28199596,709.23,707.99,0.28248986]
[1735618437963,0.25965653,709.22,707.99,0.28248986]
[1735618438367,0.28199596,709.23,707.99,0.28248986]
[1735618438565,0.25966059,709.22,707.99,0.28248986]
[1735618438765,0.25969645,709.21,707.99,0.28248986]
[1735618438967,0.25969645,709.2,707.99,0.28248986]
[1735618439170,0.28199596,709.23,707.99,0.28248986]
[1735618439370,0.25970719,709.22,707.99,0.28248986]
[1735618440975,0.25972338,709.21,707.99,0.28248986]
[1735618441178,0.25972592,709.2,707.99,0.28248986]
[1735618441375,0.28199596,709.23,707.99,0.28248986]
[1735618441376,0.25972592,709.19,707.99,0.28248986]
[1735618441577,0.25972592,709.18,707.99,0.28248986]
[1735618441778,0.25972592,709.17,707.99,0.28248986]
[1735618442077,0.25972592,709.16,707.99,0.28248986]
[1735618442272,0.28199596,709.23,707.99,0.28248986]
[1735618442475,0.25970497,709.22,707.99,0.28248986]
[1735618442675,1.47400374,709.15,707.99,0.28248986]
[1735618443476,0.25967818,709.14,707.99,0.28248986]
[1735618445481,1.47400374,709.15,707.99,0.28248986]
[1735618445675,0.25968293,709.14,707.99,0.28248986]
[1735618446181,1.47400374,709.15,707.99,0.28248986]
[1735618446381,0.25968187,709.14,707.99,0.28248986]
[1735618447183,1.05361886,709.13,707.99,0.28248986]
[1735618447478,0.25968187,709.12,707.99,0.28248986]
[1735618448283,0.25969242,709.11,707.99,0.28248986]
[1735618448479,1.05361886,709.11,707.99,0.28248986]
[1735618448684,0.25969242,709.1,707.99,0.28248986]
[1735618449586,1.31331128,709.1,707.99,0.28248986]
[1735618449885,0.25969242,709.09,707.99,0.28248986]
[1735618450586,1.31331128,709.09,707.99,0.28248986]
[1735618450882,0.25971344,709.08,707.99,0.28248986]
[1735618452682,0.25971344,709.07,707.99,0.28248986]
[1735618452881,0.25971344,709.06,707.99,0.28248986]
[1735618453386,0.2597105,709.05,707.99,0.28248986]
[1735618453589,1.47383727,709.07,707.99,0.28248986]
[1735618453590,0.2597105,709.04,707.99,0.28248986]
[1735618453788,0.2597105,709.03,707.99,0.28248986]
[1735618453982,2.52745613,709.07,707.99,0.28248986]
[1735618454181,0.25971029,709.06,707.99,0.28248986]
[1735618454588,1.31332915,709.06,707.99,0.28248986]
[1735618454787,0.25971029,709.05,707.99,0.28248986]
[1735618456189,0.25971029,709.04,707.99,0.28248986]
[1735618456388,0.25971029,709.03,707.99,0.28248986]
[1735618456584,0.25971029,709.02,707.99,0.28248986]
[1735618456783,0.25971029,709.01,707.99,0.28248986]
[1735618456985,0.25971029,709.0,707.99,0.28248986]
[1735618457189,0.25971029,708.99,707.99,0.28248986]
[1735618457385,0.25971029,708.98,707.99,0.28248986]
[1735618457588,1.05361886,709.03,707.99,0.28248986]
[1735618457785,1.05361886,709.0,707.99,0.28248986]
[1735618458091,0.25972826,708.99,707.99,0.28248986]
[1735618458689,1.05361886,709.01,707.99,0.28248986]
[1735618458894,0.25973571,709.0,707.99,0.28248986]
[1735618460095,1.05361886,708.98,707.99,0.28248986]
[1735618460394,0.25973571,708.97,707.69,1.04199174]
[1735618461496,1.47383727,709.07,701.59,8.33677274]
[1735618461497,1.05361886,708.9,707.57,1.04199174]
[1735618461688,0.25978891,708.89,707.57,1.32464928]
[1735618462089,1.05361886,708.9,707.57,1.32464928]
[1735618462090,0.2597895,708.88,707.57,1.32464928]
[1735618462290,1.05361886,708.9,707.57,1.32464928]
[1735618462291,0.2597895,708.87,707.57,1.32464928]
[1735618462494,1.31340836,708.86,707.57,0.28265754]
[1735618462794,0.2597895,708.85,707.57,0.28265754]
[1735618463297,1.73399097,708.85,707.57,1.32464928]
[1735618463596,0.2597895,708.84,707.57,1.32464928]
[1735618464192,0.259784,708.83,707.57,1.32464928]
[1735618464394,0.259784,708.82,707.57,1.32464928]
[1735618464593,0.259784,708.81,707.57,0.28265754]
[1735618464800,0.259784,708.8,707.57,0.28265754]
[1735618464990,0.259784,708.79,707.57,0.28265754]
[1735618465190,0.259784,708.78,707.57,0.28265754]
[1735618465390,0.259784,708.77,707.57,0.28265754]
[1735618465695,1.47420147,708.85,707.57,0.28265754]
[1735618465997,0.25978913,708.84,707.57,0.28265754]
[1735618466789,0.25979287,708.83,707.57,0.28265754]
[1735618466995,0.25979287,708.82,707.57,0.28265754]
[1735618467295,0.25979287,708.81,707.57,0.28265754]
[1735618467491,0.25979287,708.8,707.57,0.28265754]
[1735618467690,0.25979287,708.79,707.57,0.28265754]
[1735618467895,0.25979287,708.78,707.57,0.28265754]
[1735618468093,0.25979287,708.77,707.57,0.28265754]
[1735618468289,0.25979287,708.76,707.57,0.28265754]
[1735618468494,0.25979287,708.75,707.57,0.28265754]
[1735618468691,0.25979287,708.74,707.57,0.28265754]
[1735618468894,0.25979287,708.73,707.57,0.28265754]
[1735618469090,0.25979287,708.72,707.57,0.28265754]
[1735618469293,1.47420147,708.85,707.57,0.28265754]
[1735618469294,0.2598199,708.71,707.57,0.28265754]
[1735618469494,0.2598199,708.7,707.57,0.28265754]
[1735618469692,0.2598199,708.69,707.57,0.28265754]
[1735618469998,0.2598288,708.68,707.57,0.28265754]
[1735618470199,1.47420147,708.85,707.57,0.28265754]
[1735618470398,0.25982773,708.84,707.57,0.28265754]
[1735618470592,0.25982773,708.83,707.57,0.28265754]
[1735618470795,0.25982773,708.82,707.57,0.28265754]
[1735618470995,0.25982773,708.81,707.57,0.28265754]
[1735618471193,0.25982773,708.8,707.57,0.28265754]
[1735618471397,0.25982773,708.79,707.57,0.28265754]
[1735618471595,0.25982773,708.78,707.57,0.28265754]
[1735618471896,1.47420147,708.85,707.57,0.28265754]
[1735618472101,0.25982707,708.84,707.57,0.28265754]
[1735618474701,0.25983227,708.83,707.57,0.28265754]
[1735618474900,0.25983227,708.82,707.57,0.28265754]
[1735618475201,0.25983227,708.81,707.57,0.28265754]
[1735618475400,0.25983227,708.8,707.57,0.28265754]
[1735618475597,0.25983227,708.79,707.57,0.28265754]
[1735618475798,0.25983227,708.78,707.57,0.28265754]
[1735618476000,0.25983227,708.77,707.57,0.28265754]
[1735618476204,0.25983227,708.76,707.57,0.28265754]
[1735618476402,0.25983227,708.75,707.57,0.28265754]
[1735618478006,0.25983205,708.74,707.57,0.28265754]
[1735618478306,0.25983205,708.73,707.57,0.28265754]
[1735618478507,1.474519,708.76,707.57,0.28265754]
[1735618478508,0.25983205,708.72,707.57,0.28265754]
[1735618478706,0.25983205,708.71,707.57,0.28265754]
[1735618478900,0.25983205,708.7,707.57,0.28265754]
[1735618479103,0.25983205,708.69,707.57,0.28265754]
[1735618479300,0.25983205,708.68,707.57,0.28265754]
[1735618479503,0.25983205,708.67,707.57,0.28265754]
[1735618479704,0.25983205,708.66,707.57,0.28265754]
[1735618479908,0.25986846,708.65,707.57,0.28265754]
[1735618480205,1.474519,708.76,707.57,0.28265754]
[1735618480206,0.25986846,708.64,707.57,0.28265754]
[1735618480407,0.25986846,708.63,707.57,0.28265754]
[1735618480602,0.25986846,708.62,707.57,0.28265754]
[1735618480801,0.25986846,708.61,707.57,0.28265754]
[1735618481004,0.25986846,708.6,707.57,0.28265754]
[1735618481307,0.25986846,708.59,707.57,0.28265754]
[1735618481501,0.25986846,708.58,707.57,0.28265754]
[1735618481706,0.25986846,708.57,707.57,0.28265754]
[1735618482005,1.474519,708.76,707.57,0.28265754]
[1735618482208,0.25985857,708.75,707.57,0.28265754]
[1735618485109,0.25987496,708.74,707.57,0.28265754]
[1735618485305,0.25987496,708.75,707.57,0.28265754]
[1735618485504,0.25987496,708.74,707.57,0.28265754]
[1735618485704,0.54206987,708.73,707.57,0.28265754]
[1735618486009,0.25989827,708.72,707.57,0.28265754]
[1735618486209,0.54209716,708.72,707.57,0.28265754]
[1735618486409,0.25989827,708.71,707.57,0.28265754]
[1735618487109,0.28220685,708.7,707.57,0.28265754]
[1735618487311,0.25989827,708.69,707.57,0.28265754]
[1735618487810,0.28220685,708.7,707.57,0.28265754]
[1735618488009,1.47497731,708.68,706.89,1.04199174]
[1735618488310,0.54212777,708.67,706.91,0.28292144]
[1735618488608,0.54213175,708.66,706.91,0.28292144]
[1735618488809,0.54213573,708.65,706.91,0.28292144]
[1735618489011,0.54213972,708.64,706.91,0.28292144]
[1735618489210,0.5421437,708.63,706.91,0.28292144]
[1735618489412,0.54214768,708.62,706.91,0.28292144]
[1735618489705,0.25990897,708.61,706.91,0.28292144]
[1735618490507,0.25993053,708.6,706.91,0.28292144]
[1735618490705,0.25993053,708.59,706.91,0.28292144]
[1735618490906,0.25993053,708.58,706.91,0.28292144]
[1735618491113,0.25993053,708.57,706.91,0.28292144]
[1735618491308,0.25993053,708.56,706.91,0.28292144]
[1735618491509,0.25993053,708.55,706.91,0.28292144]
[1735618491710,0.25993053,708.54,706.91,0.28292144]
[1735618491906,0.25993053,708.53,706.91,0.28292144]
[1735618492111,0.25993053,708.52,706.91,0.28292144]
[1735618492414,0.25993053,708.51,706.91,0.28292144]
[1735618492614,0.25993053,708.5,706.91,0.28292144]
[1735618492815,0.25993053,708.49,706.91,0.28292144]
[1735618493016,0.28223871,708.62,706.91,0.28292144]
[1735618493208,0.25993443,708.61,706.91,0.28292144]
[1735618493709,0.28223871,708.62,706.91,0.28292144]
[1735618493909,0.25993545,708.61,706.91,0.28292144]
[1735618495811,0.28223871,708.62,706.91,0.28292144]
[1735618496012,0.25994864,708.61,706.91,0.28292144]
[1735618496608,0.28224668,708.6,706.91,0.28292144]
[1735618496815,0.25994864,708.59,706.91,0.28292144]
[1735618498315,1.47523262,708.58,706.91,0.28292144]
[1735618498512,0.25993999,708.57,706.91,0.28292144]
[1735618500718,1.47523262,708.58,706.91,0.28292144]
[1735618501015,0.54220514,708.57,706.91,0.28292144]
[1735618501215,0.54220912,708.56,706.91,0.28292144]
[1735618501520,0.54221698,708.55,706.91,0.28292144]
[1735618501720,0.54222096,708.54,706.91,0.28292144]
[1735618502018,0.54222494,708.53,706.91,0.28292144]
[1735618502220,0.25995038,708.52,706.91,0.28292144]
[1735618502921,0.25994564,708.51,706.91,0.28292144]
[1735618503120,0.25994564,708.5,706.91,0.28292144]
[1735618503315,0.25994564,708.49,706.91,0.28292144]
[1735618503520,0.28229448,708.48,706.91,0.28292144]
[1735618503818,0.26003186,708.47,706.91,0.28292144]
[1735618504521,0.26003186,708.46,706.91,0.28292144]
[1735618504719,0.26003186,708.45,706.91,0.28292144]
[1735618505023,0.26003186,708.44,706.91,0.28292144]
[1735618505223,0.28229448,708.48,706.91,0.28292144]
[1735618505224,0.26003186,708.43,706.91,0.28292144]
[1735618505423,0.26007584,708.42,706.91,0.28292144]
[1735618505720,1.05361886,708.26,706.91,0.28292144]
[1735618505916,0.26007584,708.25,706.91,0.28292144]
[1735618507426,0.26007584,708.24,706.91,0.28292144]
[1735618507718,1.05361886,708.29,706.91,0.28292144]
[1735618507719,0.26007584,708.23,706.91,0.28292144]
[1735618507923,0.26004021,708.22,706.91,0.28292144]
[1735618508123,0.26004021,708.21,706.91,0.28292144]
[1735618508321,0.26004021,708.2,706.91,0.28292144]
[1735618508525,0.26004021,708.19,706.91,0.28292144]
[1735618508724,0.26003541,708.47,706.91,0.28292144]
[1735618508920,0.26003541,708.46,706.91,0.28292144]
[1735618509125,0.26003541,708.45,706.91,0.28292144]
[1735618509321,1.05361886,708.43,706.91,0.28292144]
[1735618509521,0.26003541,708.42,706.91,0.28292144]
[1735618510924,0.26003541,708.41,706.91,0.28292144]
[1735618511121,0.26003541,708.4,706.91,0.28292144]
[1735618511327,0.26003541,708.39,706.91,0.28292144]
[1735618511522,0.26003541,708.47,706.91,0.28292144]
[1735618511727,0.26003541,708.46,706.91,0.28292144]
[1735618511926,1.47540462,708.38,706.91,0.28292144]
[1735618512126,0.26003541,708.37,706.91,0.28292144]
[1735618513226,0.25995975,708.36,706.91,0.28292144]
[1735618513424,0.25995975,708.35,706.91,0.28292144]
[1735618513626,1.47540462,708.38,706.91,0.28292144]
[1735618513627,0.25995975,708.34,706.91,0.28292144]
[1735618513828,0.25995975,708.33,706.91,0.28292144]
[1735618514028,0.25995975,708.32,706.91,0.28292144]
[1735618514229,0.25995975,708.31,706.91,0.28292144]
[1735618514523,1.47540462,708.38,706.91,0.28292144]
[1735618514728,0.25994654,708.37,706.91,0.28292144]
[1735618515830,0.25994889,708.36,706.91,0.28292144]
[1735618516030,0.25994889,708.35,706.91,0.28292144]
[1735618516230,1.47540462,708.38,706.91,0.28292144]
[1735618516431,0.25994647,708.37,706.91,0.28292144]
[1735618517632,1.47540462,708.38,706.91,0.28292144]
[1735618517931,0.25994146,708.37,706.91,0.28292144]
[1735618518232,1.47540462,708.38,706.91,0.28292144]
[1735618518732,0.25994485,708.37,706.91,0.28292144]
[1735618519129,1.47540462,708.38,706.91,0.28292144]
[1735618522626,0.28229448,708.48,706.91,0.28292144]
[1735618523827,1.47510235,708.5,706.99,1.04199174]
[1735618524734,1.47510235,708.5,707.01,0.28288143]
[1735618524929,1.47510235,708.5,707.12,1.04199174]
[1735618525735,1.47510235,708.5,707.14,0.28282942]
[1735618534138,0.25989101,708.49,707.14,0.28282942]
[1735618534441,1.47510235,708.5,707.14,0.28282942]
[1735618536039,0.25988849,708.49,707.14,0.28282942]
[1735618536232,1.47510235,708.5,707.14,0.28282942]
[1735618536435,0.25990342,708.49,707.14,0.28282942]
[1735618536636,1.47510235,708.5,707.14,0.28282942]
[1735618536834,0.2599203,708.49,707.14,0.28282942]
[1735618538436,1.47510235,708.5,707.14,0.28282942]
[1735618559054,0.25990098,708.49,707.14,0.28282942]
[1735618559453,0.25990098,708.49,707.21,1.04199174]
[1735618559649,0.25990098,708.49,707.21,1.32479317]
[1735618560757,1.05361886,708.47,707.21,0.28280143]
[1735618560950,0.25991559,708.46,707.21,0.28280143]
[1735618561755,1.31353445,708.46,707.21,0.28280143]
[1735618561955,0.25991559,708.45,707.21,0.28280143]
[1735618562555,0.25991716,708.44,707.21,0.28280143]
[1735618562755,0.25991716,708.43,707.21,0.28280143]
[1735618563058,0.25991716,708.42,707.21,0.28280143]
[1735618563258,1.05361886,708.46,707.21,0.28280143]
[1735618563451,1.4749721,708.42,707.21,0.28280143]
[1735618563852,0.25991166,708.41,707.21,0.28280143]
[1735618565257,0.25991166,708.41,707.21,1.32479317]
[1735618565258,1.05361886,708.39,707.21,1.32479317]
[1735618565459,0.25991166,708.38,707.21,1.32479317]
[1735618566656,1.05361886,708.27,707.21,0.28280143]
[1735618567963,1.05361886,708.3,707.21,0.28280143]
[1735618569056,1.4749721,708.42,707.21,0.28280143]
[1735618569057,1.05361886,708.4,707.21,0.28280143]
[1735618569964,1.4749721,708.42,707.21,0.28280143]
[1735618570866,0.25997796,708.41,707.21,0.28280143]
[1735618571867,2.52859096,708.42,707.21,0.28280143]
[1735618572063,0.25997743,708.41,707.21,0.28280143]
[1735618572966,0.25999088,708.4,707.21,0.28280143]
[1735618573268,0.25999088,708.39,707.21,0.28280143]
[1735618573464,0.25999088,708.38,707.21,0.28280143]
[1735618573661,0.25999088,708.37,707.21,0.28280143]
[1735618573859,0.25999088,708.36,707.21,0.28280143]
[1735618574163,0.25999088,708.35,707.21,0.28280143]
[1735618574363,0.25999088,708.34,707.21,0.28280143]
[1735618574560,1.05361886,708.41,707.21,0.28280143]
[1735618574764,1.47546197,708.33,707.21,0.28280143]
[1735618576969,0.26002093,708.32,707.21,0.28280143]
[1735618577468,1.47546197,708.33,707.21,0.28280143]
[1735618577667,0.26002711,708.32,707.21,0.28280143]
[1735618578069,0.54238536,708.32,707.21,0.28280143]
[1735618578272,0.26002711,708.31,707.21,0.28280143]
[1735618579071,0.26003993,708.3,707.21,0.28280143]
[1735618579264,0.26003993,708.29,707.21,0.28280143]
[1735618579467,0.26003993,708.28,707.21,0.28280143]
[1735618579663,0.26003993,708.27,707.21,0.28280143]
[1735618579867,0.26003993,708.26,707.21,0.28280143]
[1735618580067,0.26003993,708.25,707.21,0.28280143]
[1735618580270,0.28235825,708.32,707.21,0.28280143]
[1735618580467,0.26003463,708.31,707.21,0.28280143]
[1735618583372,0.28235825,708.32,707.21,0.28280143]
[1735618583574,0.26001785,708.31,707.21,0.28280143]
[1735618584977,0.28235825,708.32,707.21,0.28280143]
[1735618593483,1.47478978,708.74,707.21,0.28280143]
[1735618595183,1.05361886,709.33,707.21,0.28280143]
[1735618595380,0.28196416,709.31,707.21,0.28280143]
[1735618595680,0.25982836,709.3,707.21,0.28280143]
[1735618595878,0.28197608,709.28,707.21,0.28280143]
[1735618596084,0.25982836,709.27,707.21,0.28280143]
[1735618596285,0.28198801,709.25,707.21,0.28280143]
[1735618596481,0.25982836,709.24,707.21,0.28280143]
[1735618596686,0.25982431,709.23,707.21,0.28280143]
[1735618596886,0.28200391,709.21,707.21,0.28280143]
[1735618597186,0.25982431,709.2,707.21,0.28280143]
[1735618597986,0.28201584,709.18,707.21,0.28280143]
[1735618598285,0.25982431,709.17,707.21,0.28280143]
[1735618598587,0.28202777,709.15,707.21,0.28280143]
[1735618598788,0.25982431,709.14,707.21,0.28280143]
[1735618599087,0.28203971,709.12,707.21,0.28280143]
[1735618599288,0.25982774,709.11,707.21,0.28280143]
[1735618599490,0.28205164,709.09,707.21,0.28280143]
[1735618599682,0.25982774,709.08,707.21,0.28280143]
[1735618599887,0.28206357,709.06,707.21,0.28280143]
[1735618600086,0.25982774,709.05,707.21,0.28280143]
[1735618601789,0.28206357,709.06,707.21,0.28280143]
[1735618602090,0.25983124,709.05,707.21,0.28280143]
[1735618602485,0.28206357,709.06,707.21,0.28280143]
[1735618602689,0.25983757,709.05,707.21,0.28280143]
[1735618603090,0.28207551,709.03,707.21,0.28280143]
[1735618603285,0.25983757,709.02,707.21,0.28280143]
[1735618603485,0.28208744,709.0,707.21,0.28280143]
[1735618603689,0.25983757,708.99,707.21,0.28280143]
[1735618603890,0.28209938,708.97,707.21,0.28280143]
[1735618604087,0.25983757,708.96,707.21,0.28280143]
[1735618604286,0.28211132,708.94,707.21,0.28280143]
[1735618604692,0.25986665,708.93,707.21,0.28280143]
[1735618605888,0.28211928,708.92,707.21,0.28280143]
[1735618606090,0.25986665,708.91,707.21,0.28280143]
[1735618606494,0.28212723,708.9,707.21,0.28280143]
[1735618606695,0.25986665,708.89,707.21,0.28280143]
[1735618607189,0.54197739,708.88,707.21,0.28280143]
[1735618607393,0.2598422,708.87,707.21,0.28280143]
[1735618609790,0.25983891,708.86,707.21,0.28280143]
[1735618609990,0.25983891,708.85,707.21,0.28280143]
[1735618610197,0.25983891,708.84,707.21,0.28280143]
[1735618610396,1.47477416,708.86,707.21,0.28280143]
[1735618610598,0.25998629,708.85,707.21,0.28280143]
[1735618610797,0.25998629,708.84,707.21,0.28280143]
[1735618611097,0.25998629,708.83,707.21,0.28280143]
[1735618611297,0.25998629,708.82,707.21,0.28280143]
[1735618611498,0.25998629,708.81,707.21,0.28280143]
[1735618611799,0.25998629,708.8,707.21,0.28280143]
[1735618611995,0.25998629,708.79,706.77,1.04199174]
[1735618612196,0.25998629,708.78,706.77,1.04199174]
[1735618612394,1.05361886,708.47,705.42,1.04199174]
[1735618612598,0.26023575,708.46,705.42,1.04199174]
[1735618612898,0.26023575,708.46,705.57,0.28345876]
[1735618613595,0.26023575,708.45,705.57,0.28345876]
[1735618613801,0.28234629,708.35,705.57,0.28345876]